[Event "*** Titled Tuesday Blitz"]
[Site "Chess.com"]
[Date "2021.04.20"]
[Round "1"]
[White "Phenix2k"]
[Black "Omk124"]
[Result "1-0"]
[WhiteElo "2263"]
[BlackElo "2550"]
[TimeControl "180+1"]
[EndTime "10:08:00 PDT"]
[Termination "Phenix2k won by resignation"]

1. d4 {[%clk 0:03:00.9]} 1... Nf6 {[%clk 0:02:59.9]} 2. c4 {[%clk 0:03:00.3]}
2... g6 {[%clk 0:02:58.8]} 3. Nc3 {[%clk 0:02:59.9]} 3... d5 {[%clk 0:02:58.8]}
4. cxd5 {[%clk 0:02:59.9]} 4... Nxd5 {[%clk 0:02:59.7]} 5. e4 {[%clk 0:03:00.5]}
5... Nxc3 {[%clk 0:02:59.5]} 6. bxc3 {[%clk 0:03:01.4]} 6... Bg7 {[%clk
0:03:00.2]} 7. Be3 {[%clk 0:03:01.8]} 7... c5 {[%clk 0:02:59]} 8. Qd2 {[%clk
0:03:02.1]} 8... Qa5 {[%clk 0:02:55.9]} 9. Nf3 {[%clk 0:03:01.8]} 9... O-O
{[%clk 0:02:55.5]} 10. Rc1 {[%clk 0:03:01]} 10... Rd8 {[%clk 0:02:54.6]} 11. d5
{[%clk 0:03:00.8]} 11... e6 {[%clk 0:02:54.9]} 12. Bg5 {[%clk 0:03:00.8]} 12...
f6 {[%clk 0:02:54.7]} 13. Be3 {[%clk 0:03:00.7]} 13... exd5 {[%clk 0:02:54.9]}
14. exd5 {[%clk 0:02:58.7]} 14... b6 {[%clk 0:02:53.4]} 15. c4 {[%clk
0:02:52.8]} 15... Qxd2+ {[%clk 0:02:52.4]} 16. Kxd2 {[%clk 0:02:52]} 16... Nd7
{[%clk 0:02:51.5]} 17. Bd3 {[%clk 0:02:48.3]} 17... Ba6 {[%clk 0:02:49.1]} 18.
a4 {[%clk 0:02:40.2]} 18... Re8 {[%clk 0:02:48.1]} 19. Rhe1 {[%clk 0:02:37.2]}
19... Kf7 {[%clk 0:02:33.5]} 20. Bf4 {[%clk 0:02:33]} 20... h6 {[%clk
0:02:30.5]} 21. h4 {[%clk 0:02:30.2]} 21... h5 {[%clk 0:02:12.3]} 22. Kc2 {[%clk
0:02:21.6]} 22... Bf8 {[%clk 0:02:08.2]} 23. Kb3 {[%clk 0:02:19.3]} 23... Bb7
{[%clk 0:02:06.5]} 24. Rxe8 {[%clk 0:02:08]} 24... Rxe8 {[%clk 0:02:05.9]} 25.
Re1 {[%clk 0:02:08.3]} 25... Be7 {[%clk 0:01:57.4]} 26. d6 {[%clk 0:02:00.6]}
26... Bxf3 {[%clk 0:01:37.8]} 27. gxf3 {[%clk 0:01:58.1]} 27... Bxd6 {[%clk
0:00:59.5]} 28. Rxe8 {[%clk 0:01:36.6]} 28... Bxf4 {[%clk 0:00:59.2]} 29. Ra8
{[%clk 0:01:30.8]} 29... f5 {[%clk 0:00:44]} 30. Rxa7 {[%clk 0:01:29.2]} 30...
Ke6 {[%clk 0:00:44.6]} 31. a5 {[%clk 0:01:17.7]} 31... bxa5 {[%clk 0:00:44.3]}
32. Ka4 {[%clk 0:01:17.8]} 32... Bd6 {[%clk 0:00:43.6]} 33. Kb5 {[%clk
0:01:14.2]} 33... Ne5 {[%clk 0:00:42.9]} 34. Be2 {[%clk 0:01:14.2]} 34... Be7
{[%clk 0:00:31.3]} 35. Ra6+ {[%clk 0:01:08.4]} 35... Bd6 {[%clk 0:00:28.7]} 36.
Rxa5 {[%clk 0:01:05.3]} 36... Nd7 {[%clk 0:00:28.7]} 37. Ra6 {[%clk 0:01:01.2]}
37... Ne5 {[%clk 0:00:28.7]} 38. f4 {[%clk 0:00:56.2]} 38... Nd7 {[%clk
0:00:28.1]} 39. Bf3 {[%clk 0:00:56.4]} 39... Ke7 {[%clk 0:00:28.3]} 40. Bd5
{[%clk 0:00:54.8]} 40... Nf8 {[%clk 0:00:26.6]} 41. Ra7+ {[%clk 0:00:54]} 41...
Ke8 {[%clk 0:00:26.9]} 42. Rg7 {[%clk 0:00:50.6]} 42... Bxf4 {[%clk 0:00:26.2]}
43. Bf7+ {[%clk 0:00:50.5]} 43... Kd8 {[%clk 0:00:21.7]} 44. Bxg6 {[%clk
0:00:50]} 44... Be5 {[%clk 0:00:21.5]} 45. Rg8 {[%clk 0:00:44.6]} 45... Ke7
{[%clk 0:00:21.4]} 46. Bxf5 {[%clk 0:00:44.9]} 46... Bd4 {[%clk 0:00:21.3]} 47.
f3 {[%clk 0:00:44.1]} 47... Kf7 {[%clk 0:00:21.5]} 48. Rg2 {[%clk 0:00:41.4]}
48... Kf6 {[%clk 0:00:21.8]} 49. Be4 {[%clk 0:00:38.6]} 49... Nd7 {[%clk
0:00:20.3]} 50. Rg6+ {[%clk 0:00:36.9]} 50... Kf7 {[%clk 0:00:20.9]} 51. Rg5
{[%clk 0:00:35.4]} 51... Nf6 {[%clk 0:00:21.4]} 52. Bg6+ {[%clk 0:00:32.8]}
52... Ke6 {[%clk 0:00:21.5]} 53. Bxh5 {[%clk 0:00:32.8]} 53... Be3 {[%clk
0:00:22.1]} 54. Bg4+ {[%clk 0:00:32]} 54... Ke7 {[%clk 0:00:20.6]} 55. Rxc5
{[%clk 0:00:31.9]} 55... Bxc5 {[%clk 0:00:20.6]} 56. Kxc5 {[%clk 0:00:32.8]}
56... Ne8 {[%clk 0:00:21.2]} 57. h5 {[%clk 0:00:32.5]} 57... Nf6 {[%clk
0:00:21.3]} 58. Kb6 {[%clk 0:00:32.5]} 58... Kd6 {[%clk 0:00:21.4]} 59. c5+
{[%clk 0:00:32.7]} 59... Ke7 {[%clk 0:00:21.7]} 60. c6 {[%clk 0:00:32.4]} 60...
Kf7 {[%clk 0:00:22.3]} 61. c7 {[%clk 0:00:31.9]} 61... Nd5+ {[%clk 0:00:23]} 62.
Kb7 {[%clk 0:00:31.8]} 62... Nxc7 {[%clk 0:00:23.9]} 63. Kxc7 {[%clk 0:00:32.6]}
63... Kg7 {[%clk 0:00:24.8]} 64. Kd6 {[%clk 0:00:32.3]} 64... Kh8 {[%clk
0:00:25.7]} 65. Ke7 {[%clk 0:00:32.4]} 65... Kh7 {[%clk 0:00:26.5]} 66. Kf7
{[%clk 0:00:32]} 66... Kh8 {[%clk 0:00:27.4]} 67. Ke7 {[%clk 0:00:30.8]} 67...
Kh7 {[%clk 0:00:28.3]} 68. f4 {[%clk 0:00:30.9]} 68... Kh8 {[%clk 0:00:29.2]}
69. f5 {[%clk 0:00:31.2]} 69... Kh7 {[%clk 0:00:30.1]} 70. f6 {[%clk 0:00:31.5]}
70... Kh8 {[%clk 0:00:31]} 71. f7 {[%clk 0:00:31.2]} 71... Kh7 {[%clk
0:00:31.9]} 72. Bf5+ {[%clk 0:00:30.6]} 1-0

[Event "*** Titled Tuesday Blitz"]
[Site "Chess.com"]
[Date "2021.04.20"]
[Round "1"]
[White "ViktoriyaTarasova"]
[Black "nrvisakh"]
[Result "0-1"]
[WhiteElo "2422"]
[BlackElo "2788"]
[TimeControl "180+1"]
[EndTime "10:08:01 PDT"]
[Termination "nrvisakh won by resignation"]

1. d4 {[%clk 0:03:00.9]} 1... Nf6 {[%clk 0:02:51.7]} 2. c4 {[%clk 0:03:00.4]}
2... e6 {[%clk 0:02:51.6]} 3. Nc3 {[%clk 0:02:59.5]} 3... d5 {[%clk 0:02:51]} 4.
cxd5 {[%clk 0:02:58.6]} 4... Nxd5 {[%clk 0:02:51.2]} 5. e4 {[%clk 0:02:58.3]}
5... Nxc3 {[%clk 0:02:51.3]} 6. bxc3 {[%clk 0:02:59]} 6... c5 {[%clk 0:02:51.4]}
7. Rb1 {[%clk 0:02:59.6]} 7... cxd4 {[%clk 0:02:46.3]} 8. cxd4 {[%clk 0:02:59]}
8... Be7 {[%clk 0:02:45.9]} 9. Nf3 {[%clk 0:02:55.9]} 9... O-O {[%clk 0:02:46]}
10. Be2 {[%clk 0:02:42.8]} 10... b6 {[%clk 0:02:42.8]} 11. O-O {[%clk 0:02:41]}
11... Bb7 {[%clk 0:02:42.7]} 12. Qd3 {[%clk 0:02:32]} 12... Nd7 {[%clk
0:02:34.2]} 13. Bf4 {[%clk 0:02:10.3]} 13... Nf6 {[%clk 0:02:27.2]} 14. Nd2
{[%clk 0:02:09.5]} 14... Qd7 {[%clk 0:02:24.8]} 15. Rbc1 {[%clk 0:02:05.6]}
15... Rfc8 {[%clk 0:02:24]} 16. f3 {[%clk 0:02:01.3]} 16... Rxc1 {[%clk
0:02:20.2]} 17. Rxc1 {[%clk 0:01:59.8]} 17... Rc8 {[%clk 0:02:20.7]} 18. Rxc8+
{[%clk 0:01:54.4]} 18... Qxc8 {[%clk 0:02:20.7]} 19. Qc4 {[%clk 0:01:53.8]}
19... Qd7 {[%clk 0:02:16.5]} 20. Be5 {[%clk 0:01:29.3]} 20... Ne8 {[%clk
0:02:12.5]} 21. h3 {[%clk 0:01:15]} 21... Bd6 {[%clk 0:01:48.2]} 22. Bxd6 {[%clk
0:01:04.9]} 22... Nxd6 {[%clk 0:01:47.9]} 23. Qb4 {[%clk 0:01:05.2]} 23... h6
{[%clk 0:01:41.4]} 24. Kf2 {[%clk 0:01:04.2]} 24... Bc6 {[%clk 0:01:33.7]} 25.
Nc4 {[%clk 0:00:58.5]} 25... Nxe4+ {[%clk 0:00:51]} 26. fxe4 {[%clk 0:00:55.8]}
26... Qxd4+ {[%clk 0:00:51.2]} 27. Ke1 {[%clk 0:00:34.2]} 27... Bxe4 {[%clk
0:00:42.9]} 28. Qd6 {[%clk 0:00:27.7]} 28... Qg1+ {[%clk 0:00:33.5]} 29. Kd2
{[%clk 0:00:27.5]} 29... Qxg2 {[%clk 0:00:32.7]} 30. Qb8+ {[%clk 0:00:19.9]}
30... Kh7 {[%clk 0:00:32.5]} 31. Qf4 {[%clk 0:00:17]} 31... Bg6 {[%clk
0:00:28.2]} 32. h4 {[%clk 0:00:09.8]} 32... Qd5+ {[%clk 0:00:27.8]} 33. Ke1
{[%clk 0:00:08.9]} 33... Qe4 {[%clk 0:00:22]} 34. Qxe4 {[%clk 0:00:08.5]} 34...
Bxe4 {[%clk 0:00:22.9]} 35. Ne5 {[%clk 0:00:08.5]} 35... f5 {[%clk 0:00:22.1]}
36. a3 {[%clk 0:00:07.2]} 36... g5 {[%clk 0:00:22.1]} 37. hxg5 {[%clk
0:00:06.1]} 37... hxg5 {[%clk 0:00:22.5]} 38. Nc4 {[%clk 0:00:06.8]} 38... Kg6
{[%clk 0:00:21.2]} 39. Kf2 {[%clk 0:00:07.2]} 39... Kf6 {[%clk 0:00:20.3]} 40.
Nd6 {[%clk 0:00:07.7]} 40... Bd5 {[%clk 0:00:18.6]} 41. Nc8 {[%clk 0:00:07.2]}
41... g4 {[%clk 0:00:18.7]} 42. Nxa7 {[%clk 0:00:07.5]} 42... Kg5 {[%clk
0:00:18.9]} 43. Nc8 {[%clk 0:00:07.3]} 43... f4 {[%clk 0:00:19]} 44. Nxb6 {[%clk
0:00:07]} 44... g3+ {[%clk 0:00:19.4]} 45. Kg1 {[%clk 0:00:06.5]} 45... f3
{[%clk 0:00:18]} 46. Bxf3 {[%clk 0:00:07]} 46... Bxf3 {[%clk 0:00:18.1]} 47. a4
{[%clk 0:00:07.7]} 47... e5 {[%clk 0:00:17.8]} 48. a5 {[%clk 0:00:08.2]} 48...
e4 {[%clk 0:00:18.1]} 49. Nc4 {[%clk 0:00:07.8]} 49... Kf4 {[%clk 0:00:18.3]}
50. a6 {[%clk 0:00:06.3]} 50... e3 {[%clk 0:00:18.5]} 51. Nxe3 {[%clk
0:00:05.6]} 51... Kxe3 {[%clk 0:00:17.9]} 52. a7 {[%clk 0:00:06.2]} 52... Kf4
{[%clk 0:00:18]} 53. Kf1 {[%clk 0:00:05.5]} 53... Kg4 {[%clk 0:00:18.3]} 54. Kg1
{[%clk 0:00:06]} 54... Kh3 {[%clk 0:00:18.6]} 55. Kf1 {[%clk 0:00:06.4]} 55...
Kh2 {[%clk 0:00:18.4]} 56. Ke1 {[%clk 0:00:06.6]} 56... g2 {[%clk 0:00:17.9]}
0-1

[Event "*** Titled Tuesday Blitz"]
[Site "Chess.com"]
[Date "2021.04.20"]
[Round "1"]
[White "WisdomGame"]
[Black "Oligan22"]
[Result "1-0"]
[WhiteElo "2095"]
[BlackElo "2483"]
[TimeControl "180+1"]
[EndTime "10:08:01 PDT"]
[Termination "WisdomGame won on time"]

1. e4 {[%clk 0:02:56.8]} 1... c6 {[%clk 0:03:00.1]} 2. Ne2 {[%clk 0:02:54.9]}
2... d5 {[%clk 0:03:01]} 3. e5 {[%clk 0:02:55.5]} 3... d4 {[%clk 0:02:56.2]} 4.
d3 {[%clk 0:02:40.5]} 4... c5 {[%clk 0:02:55.9]} 5. f4 {[%clk 0:02:38.4]} 5...
Qd5 {[%clk 0:02:52.2]} 6. Nd2 {[%clk 0:02:35.3]} 6... Nc6 {[%clk 0:02:39.5]} 7.
Ne4 {[%clk 0:02:28.4]} 7... Bf5 {[%clk 0:01:46]} 8. N2g3 {[%clk 0:02:26.9]} 8...
e6 {[%clk 0:01:42.6]} 9. Be2 {[%clk 0:02:24.9]} 9... Nge7 {[%clk 0:01:27.8]} 10.
Bf3 {[%clk 0:01:53.7]} 10... Qd7 {[%clk 0:01:00.7]} 11. Nd6+ {[%clk 0:01:51.5]}
11... Kd8 {[%clk 0:01:01.2]} 12. Nxf7+ {[%clk 0:01:51.6]} 12... Kc7 {[%clk
0:01:01.7]} 13. Nxh8 {[%clk 0:01:51.9]} 13... Nd5 {[%clk 0:00:56.7]} 14. Nxf5
{[%clk 0:01:44.6]} 14... exf5 {[%clk 0:00:56]} 15. O-O {[%clk 0:01:35.2]} 15...
g6 {[%clk 0:00:55.8]} 16. Re1 {[%clk 0:01:28.9]} 16... Re8 {[%clk 0:00:44.9]}
17. Qe2 {[%clk 0:01:15]} 17... Nd8 {[%clk 0:00:34.7]} 18. e6 {[%clk 0:01:06.2]}
18... Rxe6 {[%clk 0:00:26]} 19. Qf2 {[%clk 0:01:06.1]} 19... Bg7 {[%clk
0:00:21.7]} 20. Rxe6 {[%clk 0:00:58.8]} 20... Qxe6 {[%clk 0:00:18.3]} 21. Nxg6
{[%clk 0:00:58.8]} 21... hxg6 {[%clk 0:00:18.2]} 22. Bd2 {[%clk 0:00:58.5]}
22... Ne3 {[%clk 0:00:18.5]} 23. c3 {[%clk 0:00:32.3]} 23... Nc6 {[%clk
0:00:18.4]} 24. c4 {[%clk 0:00:29.1]} 24... Ne7 {[%clk 0:00:16.4]} 25. Re1
{[%clk 0:00:27.9]} 25... Qd6 {[%clk 0:00:16]} 26. g3 {[%clk 0:00:25.1]} 26...
Nc6 {[%clk 0:00:15.1]} 27. Kh1 {[%clk 0:00:23.3]} 27... Nc2 {[%clk 0:00:15.3]}
28. Rc1 {[%clk 0:00:20.5]} 28... N2b4 {[%clk 0:00:15.7]} 29. Bxb4 {[%clk
0:00:19]} 29... Nxb4 {[%clk 0:00:16.6]} 30. Qe2 {[%clk 0:00:18.6]} 30... Nxa2
{[%clk 0:00:15.1]} 31. Ra1 {[%clk 0:00:18.5]} 31... Nb4 {[%clk 0:00:14.3]} 32.
Rxa7 {[%clk 0:00:19]} 32... Nc6 {[%clk 0:00:13.8]} 33. Ra1 {[%clk 0:00:17.4]}
33... Bf6 {[%clk 0:00:12.9]} 34. Re1 {[%clk 0:00:17.4]} 34... Kd7 {[%clk
0:00:13]} 35. Bd5 {[%clk 0:00:17]} 35... Bd8 {[%clk 0:00:12.5]} 36. Qe6+ {[%clk
0:00:16.6]} 36... Qxe6 {[%clk 0:00:12.3]} 37. Bxe6+ {[%clk 0:00:16.1]} 37... Kd6
{[%clk 0:00:10]} 38. Bd5 {[%clk 0:00:17]} 38... Ne7 {[%clk 0:00:09.2]} 39. Bxb7
{[%clk 0:00:13.4]} 39... Ba5 {[%clk 0:00:09.2]} 40. Re2 {[%clk 0:00:12.4]} 40...
Kd7 {[%clk 0:00:08.4]} 41. Bf3 {[%clk 0:00:12.3]} 41... Bb4 {[%clk 0:00:08.6]}
42. Bd5 {[%clk 0:00:12.5]} 42... Kd6 {[%clk 0:00:08.5]} 43. Re6+ {[%clk
0:00:12.3]} 43... Kd7 {[%clk 0:00:08.9]} 44. Rf6 {[%clk 0:00:12.4]} 44... Bd2
{[%clk 0:00:07.4]} 45. Bf7 {[%clk 0:00:11.5]} 45... Bc1 {[%clk 0:00:06.7]} 46.
b3 {[%clk 0:00:11.2]} 46... Nc6 {[%clk 0:00:04.3]} 47. Rxg6 {[%clk 0:00:10.5]}
47... Nb4 {[%clk 0:00:04.6]} 48. Be6+ {[%clk 0:00:09.8]} 48... Ke7 {[%clk
0:00:05]} 49. Bxf5 {[%clk 0:00:10.7]} 49... Nc2 {[%clk 0:00:04.9]} 50. Be4
{[%clk 0:00:10.5]} 50... Bd2 {[%clk 0:00:03.3]} 51. Kg2 {[%clk 0:00:09.9]} 51...
Ne3+ {[%clk 0:00:02.6]} 52. Kh3 {[%clk 0:00:09.9]} 1-0

[Event "*** Titled Tuesday Blitz"]
[Site "Chess.com"]
[Date "2021.04.20"]
[Round "1"]
[White "fabianvivasz"]
[Black "Aradhya2000"]
[Result "1-0"]
[WhiteElo "2327"]
[BlackElo "2594"]
[TimeControl "180+1"]
[EndTime "10:08:02 PDT"]
[Termination "fabianvivasz won by checkmate"]

1. c4 {[%clk 0:02:55.2]} 1... e5 {[%clk 0:02:54.7]} 2. Nc3 {[%clk 0:02:50.7]}
2... Nf6 {[%clk 0:02:53.9]} 3. Nf3 {[%clk 0:02:50.8]} 3... Nc6 {[%clk
0:02:54.2]} 4. e4 {[%clk 0:02:50.5]} 4... Bb4 {[%clk 0:02:50.1]} 5. d3 {[%clk
0:02:45.2]} 5... d6 {[%clk 0:02:49.9]} 6. a3 {[%clk 0:02:37.1]} 6... Bxc3+
{[%clk 0:02:48]} 7. bxc3 {[%clk 0:02:38]} 7... O-O {[%clk 0:02:47.5]} 8. g3
{[%clk 0:02:31.9]} 8... Nd7 {[%clk 0:02:45.1]} 9. Nh4 {[%clk 0:02:17.2]} 9...
Nc5 {[%clk 0:02:44.7]} 10. Bg2 {[%clk 0:02:17.2]} 10... Qf6 {[%clk 0:02:41]} 11.
O-O {[%clk 0:02:13.7]} 11... a6 {[%clk 0:02:38.9]} 12. a4 {[%clk 0:01:53.3]}
12... Ne7 {[%clk 0:01:59.4]} 13. Qc2 {[%clk 0:01:01.6]} 13... Ng6 {[%clk
0:01:59]} 14. Nxg6 {[%clk 0:01:00]} 14... fxg6 {[%clk 0:01:58.6]} 15. f4 {[%clk
0:00:57.5]} 15... Bd7 {[%clk 0:01:09]} 16. fxe5 {[%clk 0:00:43.7]} 16... Qe7
{[%clk 0:00:55.2]} 17. Rxf8+ {[%clk 0:00:27.9]} 17... Rxf8 {[%clk 0:00:53.4]}
18. exd6 {[%clk 0:00:28.2]} 18... cxd6 {[%clk 0:00:41.8]} 19. d4 {[%clk
0:00:22.3]} 19... Nxa4 {[%clk 0:00:37.8]} 20. Rxa4 {[%clk 0:00:18]} 20... Bxa4
{[%clk 0:00:38.7]} 21. Qxa4 {[%clk 0:00:18.5]} 21... Qf7 {[%clk 0:00:35.3]} 22.
Be3 {[%clk 0:00:17.5]} 22... Rc8 {[%clk 0:00:31]} 23. c5 {[%clk 0:00:07.8]}
23... dxc5 {[%clk 0:00:29.1]} 24. dxc5 {[%clk 0:00:05.3]} 24... Rf8 {[%clk
0:00:13.3]} 25. h4 {[%clk 0:00:05]} 25... h6 {[%clk 0:00:12.3]} 26. Qd4 {[%clk
0:00:05.1]} 26... g5 {[%clk 0:00:11.5]} 27. Qd5 {[%clk 0:00:05.2]} 27... gxh4
{[%clk 0:00:11.5]} 28. Qxf7+ {[%clk 0:00:04.6]} 28... Kxf7 {[%clk 0:00:11.7]}
29. gxh4 {[%clk 0:00:04.6]} 29... Ke6 {[%clk 0:00:12.2]} 30. Bd4 {[%clk
0:00:03.6]} 30... g5 {[%clk 0:00:10.7]} 31. Bh3+ {[%clk 0:00:03.8]} 31... Ke7
{[%clk 0:00:10.5]} 32. hxg5 {[%clk 0:00:04.3]} 32... hxg5 {[%clk 0:00:11.1]} 33.
Kg2 {[%clk 0:00:04.6]} 33... Rf4 {[%clk 0:00:10.8]} 34. Bf5 {[%clk 0:00:04.2]}
34... Kd8 {[%clk 0:00:09.8]} 35. Be3 {[%clk 0:00:04.3]} 35... Kc7 {[%clk
0:00:08.6]} 36. Bxf4+ {[%clk 0:00:04.5]} 36... gxf4 {[%clk 0:00:09.5]} 37. Kf3
{[%clk 0:00:03.7]} 37... a5 {[%clk 0:00:10.2]} 38. e5 {[%clk 0:00:03.9]} 38...
a4 {[%clk 0:00:10.5]} 39. Bc2 {[%clk 0:00:03.6]} 39... a3 {[%clk 0:00:10.2]} 40.
Bb3 {[%clk 0:00:04.1]} 40... Kc6 {[%clk 0:00:10.2]} 41. Kxf4 {[%clk 0:00:04.6]}
41... Kxc5 {[%clk 0:00:10.4]} 42. Kf5 {[%clk 0:00:05.1]} 42... b5 {[%clk
0:00:10.5]} 43. e6 {[%clk 0:00:05.6]} 43... b4 {[%clk 0:00:11]} 44. cxb4+ {[%clk
0:00:05.7]} 44... Kxb4 {[%clk 0:00:11.9]} 45. Bd5 {[%clk 0:00:06.2]} 45... Kc5
{[%clk 0:00:11.7]} 46. Ke5 {[%clk 0:00:06.6]} 46... Kb6 {[%clk 0:00:09.9]} 47.
e7 {[%clk 0:00:07]} 47... a2 {[%clk 0:00:09.9]} 48. Bxa2 {[%clk 0:00:06.9]}
48... Kc7 {[%clk 0:00:10.1]} 49. e8=Q {[%clk 0:00:07.6]} 49... Kb6 {[%clk
0:00:10.3]} 50. Qb8+ {[%clk 0:00:07.6]} 50... Kc5 {[%clk 0:00:10.5]} 51. Qd6+
{[%clk 0:00:08.1]} 51... Kb5 {[%clk 0:00:10.5]} 52. Qd5+ {[%clk 0:00:08.3]}
52... Kb6 {[%clk 0:00:10.7]} 53. Qc4 {[%clk 0:00:07.9]} 53... Kb7 {[%clk
0:00:10.9]} 54. Kd6 {[%clk 0:00:08.3]} 54... Ka7 {[%clk 0:00:11.2]} 55. Qb5
{[%clk 0:00:08.3]} 55... Ka8 {[%clk 0:00:11.2]} 56. Bd5+ {[%clk 0:00:08.6]}
56... Ka7 {[%clk 0:00:11.7]} 57. Qb7# {[%clk 0:00:09.3]} 1-0

[Event "*** Titled Tuesday Blitz"]
[Site "Chess.com"]
[Date "2021.04.20"]
[Round "1"]
[White "RiskyDecision"]
[Black "kritipatel"]
[Result "1/2-1/2"]
[WhiteElo "2456"]
[BlackElo "1724"]
[TimeControl "180+1"]
[EndTime "10:08:04 PDT"]
[Termination "Game drawn by repetition"]

1. d4 {[%clk 0:02:59.1]} 1... d5 {[%clk 0:02:59.4]} 2. c4 {[%clk 0:02:59]} 2...
e6 {[%clk 0:02:59]} 3. Nf3 {[%clk 0:02:58.8]} 3... Nf6 {[%clk 0:02:59.2]} 4. g3
{[%clk 0:02:59.1]} 4... Be7 {[%clk 0:02:59.4]} 5. Bg2 {[%clk 0:02:59.5]} 5...
O-O {[%clk 0:02:59.9]} 6. O-O {[%clk 0:03:00.2]} 6... dxc4 {[%clk 0:02:59.9]} 7.
Qa4 {[%clk 0:03:00.5]} 7... a6 {[%clk 0:02:57.6]} 8. Qxc4 {[%clk 0:03:00.9]}
8... b5 {[%clk 0:02:56.9]} 9. Qc2 {[%clk 0:03:01.5]} 9... Bb7 {[%clk 0:02:56.1]}
10. Bd2 {[%clk 0:03:02.1]} 10... Nbd7 {[%clk 0:02:54.8]} 11. Ba5 {[%clk
0:03:01.8]} 11... Rc8 {[%clk 0:02:53.3]} 12. b4 {[%clk 0:03:00.2]} 12... Nd5
{[%clk 0:02:50.2]} 13. a3 {[%clk 0:02:59.1]} 13... N7b6 {[%clk 0:02:48.7]} 14.
Nbd2 {[%clk 0:02:58.3]} 14... Qd7 {[%clk 0:02:43.1]} 15. Ne5 {[%clk 0:02:56.5]}
15... Qd8 {[%clk 0:02:36.5]} 16. Nc6 {[%clk 0:02:54.9]} 16... Qd6 {[%clk
0:02:31.4]} 17. Rac1 {[%clk 0:02:45.2]} 17... Bg5 {[%clk 0:02:24.1]} 18. Ne4
{[%clk 0:02:41.5]} 18... Qxc6 {[%clk 0:02:08.2]} 19. Qxc6 {[%clk 0:02:40.6]}
19... Bxc6 {[%clk 0:02:08.1]} 20. Rxc6 {[%clk 0:02:36.4]} 20... Be7 {[%clk
0:02:03.8]} 21. Nc5 {[%clk 0:02:10.3]} 21... Nc3 {[%clk 0:01:55.4]} 22. Bf3
{[%clk 0:01:58.4]} 22... Nc4 {[%clk 0:01:53.8]} 23. Rxc7 {[%clk 0:01:48.1]}
23... Rxc7 {[%clk 0:01:46.5]} 24. Bxc7 {[%clk 0:01:46.8]} 24... Nd2 {[%clk
0:01:46.7]} 25. Ra1 {[%clk 0:01:37.4]} 25... Nxf3+ {[%clk 0:01:44.7]} 26. exf3
{[%clk 0:01:38.3]} 26... Ne2+ {[%clk 0:01:44.5]} 27. Kg2 {[%clk 0:01:35.8]}
27... Nxd4 {[%clk 0:01:45]} 28. Nxa6 {[%clk 0:01:28.6]} 28... Ra8 {[%clk
0:01:42.7]} 29. Nc5 {[%clk 0:01:26.6]} 29... Nc2 {[%clk 0:01:42.2]} 30. Ra2
{[%clk 0:01:17.2]} 30... Nxb4 {[%clk 0:01:41.4]} 31. Rb2 {[%clk 0:01:05.7]}
31... Bxc5 {[%clk 0:01:33.2]} 32. axb4 {[%clk 0:01:05.2]} 32... Bd4 {[%clk
0:01:30.4]} 33. Rc2 {[%clk 0:01:00.2]} 33... Bf6 {[%clk 0:01:28.6]} 34. Bd6
{[%clk 0:00:59.6]} 34... h6 {[%clk 0:01:26.7]} 35. Rc5 {[%clk 0:00:57.7]} 35...
Ra6 {[%clk 0:01:19]} 36. Be5 {[%clk 0:00:55.9]} 36... Bxe5 {[%clk 0:01:17.3]}
37. Rxe5 {[%clk 0:00:56.8]} 37... Rb6 {[%clk 0:01:17.2]} 38. Rc5 {[%clk
0:00:55.9]} 38... Kf8 {[%clk 0:01:16.1]} 39. Rc7 {[%clk 0:00:56.2]} 39... Ke8
{[%clk 0:01:14.9]} 40. f4 {[%clk 0:00:56.3]} 40... Rd6 {[%clk 0:01:12.9]} 41.
Rb7 {[%clk 0:00:54.4]} 41... Rd5 {[%clk 0:01:12.5]} 42. h4 {[%clk 0:00:52.3]}
42... g6 {[%clk 0:01:12.2]} 43. Kf3 {[%clk 0:00:48]} 43... h5 {[%clk 0:01:09.4]}
44. Ke3 {[%clk 0:00:46.6]} 44... Rf5 {[%clk 0:01:05.6]} 45. Ke4 {[%clk
0:00:43.2]} 45... Kd8 {[%clk 0:01:04.4]} 46. Rb8+ {[%clk 0:00:30.1]} 46... Kc7
{[%clk 0:01:03.4]} 47. Rf8 {[%clk 0:00:30.1]} 47... Kd7 {[%clk 0:01:01.9]} 48.
f3 {[%clk 0:00:27.9]} 48... Ke7 {[%clk 0:01:00.9]} 49. Rb8 {[%clk 0:00:27.6]}
49... Kd7 {[%clk 0:00:59.6]} 50. g4 {[%clk 0:00:27.8]} 50... hxg4 {[%clk
0:00:58.7]} 51. fxg4 {[%clk 0:00:28.7]} 51... Rd5 {[%clk 0:00:58.7]} 52. Rb7+
{[%clk 0:00:26.1]} 52... Ke8 {[%clk 0:00:57.2]} 53. Rb8+ {[%clk 0:00:17.5]}
53... Kd7 {[%clk 0:00:56.4]} 54. Rb7+ {[%clk 0:00:17.8]} 54... Ke8 {[%clk
0:00:56.4]} 55. Rc7 {[%clk 0:00:18.3]} 55... Rd1 {[%clk 0:00:48.2]} 56. Rc5
{[%clk 0:00:18.1]} 56... Re1+ {[%clk 0:00:45.2]} 57. Kf3 {[%clk 0:00:17.8]}
57... Rh1 {[%clk 0:00:43.2]} 58. Kg3 {[%clk 0:00:17.1]} 58... Rg1+ {[%clk
0:00:43.1]} 59. Kf3 {[%clk 0:00:16.8]} 59... Rf1+ {[%clk 0:00:42.6]} 60. Kg3
{[%clk 0:00:16.3]} 60... Rg1+ {[%clk 0:00:42.6]} 61. Kh3 {[%clk 0:00:15.3]}
61... Rh1+ {[%clk 0:00:42.5]} 62. Kg3 {[%clk 0:00:16]} 62... Rg1+ {[%clk
0:00:42.8]} 1/2-1/2